fUST/lending_fUST_20250523
["ID","MTS","AMOUNT","RATE_DAILY","PERIOD"]
[362088351,1747986665268,-1637.62848492,0.00022739,2]
[362088352,1747986665279,-273.054505,0.00022806,2]
[362088353,1747986665290,-3103.47322088,0.00022813,2]
[362088354,1747986665300,-2011.81374291,0.00022813,2]
[362088355,1747986665310,-153.0,0.00022822,2]
[362088356,1747986665320,-153.0,0.00022822,2]
[362088357,1747986665330,-153.0,0.00022822,2]
[362088358,1747986665340,-160.0,0.00022833,5]
[362088359,1747986665350,-2528.02594485,0.00022845,2]
[362088360,1747986665360,-595.349336,0.00022855,6]
[362088361,1747986665370,-5734.35640953,0.00022942,2]
[362088362,1747986665381,-5000.0,0.00022942,2]
[362088363,1747986665390,-5000.0,0.00022942,2]
[362088364,1747986665400,-5000.0,0.00022942,2]
[362088365,1747986665410,-5000.0,0.00022942,2]
[362088366,1747986665420,-151.0,0.00022942,7]
[362088367,1747986665429,-151.0,0.00022942,7]
[362088368,1747986665439,-7601.52752722,0.00022969,8]
[362088369,1747986665448,-276.938145,0.00022969,7]
[362088370,1747986665458,-276.938145,0.00022969,7]
[362088371,1747986665468,-250.0,0.00023,2]
[362088372,1747986665478,-250.0,0.00023,2]
[362088373,1747986665487,-215.5,0.00023,2]
[362088374,1747986665498,-2693.0,0.00023,15]
[362088375,1747986665512,-419.8254275,0.00023,30]
[362088376,1747986665522,-500.0,0.00023,30]
[362088377,1747986665532,-500.0,0.00023,30]
[362088378,1747986665542,-500.0,0.00023,30]
[362088379,1747986665552,-500.0,0.00023,30]
[362088380,1747986665561,-500.0,0.00023,30]
[362088381,1747986665571,-502.41669824,0.00023,30]
[362088382,1747986665580,-160.0,0.00023,3]
[362088383,1747986665590,-419.8254275,0.00023,30]
[362088384,1747986665601,-487.8257266,0.00023,30]
[362088385,1747986665610,-1000.0,0.00023,23]
[362088386,1747986665620,-419.8254275,0.00023,30]
[362088387,1747986665630,-419.8254275,0.00023,30]
[362088388,1747986665640,-182.638302,0.00023,7]
[362088389,1747986665649,-340.13530041,0.00023,30]
[362088390,1747986665659,-182.638302,0.00023,7]
[362088391,1747986665669,-10000.0,0.00023,5]
[362088392,1747986665679,-10000.0,0.00023,5]
[362088393,1747986665689,-2399.7032,0.00023,5]
[362088394,1747986665699,-151.0,0.00023,7]
[362088395,1747986665708,-151.0,0.00023,7]
[362088396,1747986665718,-234.397408,0.00023,7]
[362088397,1747986665727,-234.397408,0.00023,7]
[362088398,1747986665737,-17999.999999,0.00023,2]
[362088399,1747986665748,-400.81149591,0.00023,2]
[362088400,1747986665758,-151.0,0.00023,7]
[362088401,1747986665767,-309.82159,0.00023,7]
[362088402,1747986665779,-309.82159,0.00023,7]
[362088403,1747986665789,-151.0,0.00023,7]
[362088404,1747986665799,-160.0,0.00023,3]
[362088405,1747986665809,-160.0,0.00023,3]
[362088406,1747986665819,-160.0,0.00023,3]
[362088407,1747986665829,-422.85710789,0.00023,3]
[362088408,1747986665839,-160.0,0.00023,3]
[362088409,1747986665848,-160.0,0.00023,3]
[362088410,1747986665858,-3500.0,0.00023003,2]
[362088411,1747986665869,-595.349336,0.00023006,3]
[362088412,1747986665879,-191.0,0.00023014,7]
[362088413,1747986665889,-2528.02594485,0.00023188,2]
[362088414,1747986665899,-160.0,0.00023207,6]
[362088415,1747986665909,-7601.52752722,0.00023245,8]
[362088416,1747986665918,-595.349336,0.00023245,8]
[362088417,1747986665928,-2200.0,0.00023266,2]
[362088418,1747986665938,-797.123,0.00023266,2]
[362088419,1747986665948,-595.349336,0.00023274,5]
[362088420,1747986665957,-186.049093,0.00023287,7]
[362088421,1747986665967,-186.049093,0.00023287,7]
[362088422,1747986665976,-296.041881,0.00023287,7]
[362088423,1747986665985,-344.541024,0.00023287,7]
[362088424,1747986665995,-344.541026,0.00023287,7]
[362088425,1747986666005,-151.0,0.00023287,7]
[362088426,1747986666016,-5041.67,0.00023287,2]
[362088427,1747986666025,-1700.0,0.00023356,2]
[362088428,1747986666139,-153.0,0.0002337,2]
[362088429,1747986666149,-153.0,0.0002337,2]
[362088430,1747986666158,-153.0,0.0002337,2]
[362088431,1747986666168,-153.0,0.0002337,2]
[362088432,1747986666178,-153.0,0.0002337,2]
[362088433,1747986666188,-153.0,0.0002337,2]
[362088434,1747986666198,-153.0,0.0002337,2]
[362088435,1747986666208,-153.0,0.0002337,2]
[362088436,1747986666218,-153.0,0.0002337,2]
[362088437,1747986666228,-153.0,0.0002337,2]
[362088438,1747986666239,-154.0496447,0.0002337,2]
[362088439,1747986666249,-152.713098,0.0002337,7]
[362088440,1747986666259,-151.0,0.0002337,7]
[362088441,1747986666269,-151.0,0.00023439,2]
[362088442,1747986666279,-239.84119403,0.00023439,2]
[362088443,1747986666289,-1152.0,0.00023444,2]
[362088444,1747986666299,-555.0,0.00023444,2]
[362088445,1747986666309,-248564.64715673,0.000235,2]
[362088446,1747986666319,-151.0,0.000235,7]
[362088447,1747986666328,-151.0,0.000235,7]
[362088448,1747986666339,-182.638302,0.000235,7]
[362088449,1747986666349,-182.638302,0.000235,7]
[362088450,1747986666359,-151.0,0.000235,7]
[362088451,1747986666369,-152.592625,0.000235,7]
[362088452,1747986666378,-151.0,0.000235,7]
[362088453,1747986666390,-151.0,0.000235,7]
[362088454,1747986666399,-234.397408,0.000235,7]
[362088455,1747986666409,-234.397408,0.000235,7]
[362088456,1747986666418,-186.049093,0.000235,7]
[362088457,1747986666428,-186.049093,0.000235,7]
[362088458,1747986666437,-151.0,0.000235,7]
[362088459,1747986666447,-309.82159,0.000235,7]
[362088460,1747986666457,-309.82159,0.000235,7]
[362088461,1747986666467,-276.938145,0.000235,7]
[362088462,1747986666477,-276.938145,0.000235,7]
[362088463,1747986666487,-151.0,0.000235,7]
[362088464,1747986666498,-7601.52752722,0.00023521,9]
[362088465,1747986666511,-2528.02594485,0.0002353,2]
[362088466,1747986666521,-200.0,0.0002354,8]
[362088467,1747986666530,-4000.0,0.00023551,2]
[362088468,1747986666541,-595.349336,0.00023569,6]
[362088469,1747986666551,-160.0,0.00023581,7]
[362088470,1747986666561,-595.349336,0.00023589,8]
[362088471,1747986666571,-151.0,0.00023597,7]
[362088472,1747986666583,-595.349336,0.00023659,9]
[362088473,1747986666594,-600.0,0.00023672,2]
[362088474,1747986666603,-348.02608837,0.00023677,2]
[362088475,1747986666613,-595.349336,0.00023694,9]
[362088476,1747986666623,-595.349336,0.0002373,9]
[362088477,1747986666633,-595.349336,0.0002375,2]
[362088478,1747986666643,-767.77,0.00023752,6]
[362088479,1747986666652,-595.349336,0.00023765,9]
[362088480,1747986666662,-7601.52752722,0.00023797,9]
[362088481,1747986666672,-595.349336,0.000238,9]
[362088482,1747986666682,-767.77,0.00023852,3]
[362088483,1747986666691,-2528.02594485,0.00023873,2]
[362088484,1747986666700,-1892.60746589,0.000239,2]
[362088485,1747986666710,-601.39499558,0.00023918,2]
[362088486,1747986666720,-595.349336,0.00023934,8]
[362088487,1747986666729,-182.638302,0.00023945,7]
[362088488,1747986666738,-182.638304,0.00023945,7]
[362088489,1747986666747,-2023.75,0.00023945,2]
[362088490,1747986666756,-2023.75,0.00023945,2]
[362088491,1747986666766,-2023.75,0.00023945,2]
[362088492,1747986666775,-2023.75,0.00023945,2]
[362088493,1747986666785,-2023.75,0.00023945,2]
[362088494,1747986666794,-2023.75,0.00023945,2]
[362088495,1747986666803,-2023.75,0.00023945,2]
[362088496,1747986666814,-2023.75,0.00023945,2]
[362088497,1747986666825,-2023.75,0.00023945,2]
[362088498,1747986666834,-2023.75,0.00023945,2]
[362088499,1747986666844,-2023.75,0.00023945,2]
[362088500,1747986666854,-2023.75,0.00023945,2]
[362088501,1747986666864,-2023.75,0.00023945,2]
[362088502,1747986666873,-2023.75,0.00023945,2]
[362088503,1747986666884,-2023.75,0.00023945,2]
[362088504,1747986666893,-2023.75,0.00023945,2]
[362088505,1747986666903,-2023.75,0.00023945,2]
[362088506,1747986666913,-2023.75,0.00023945,2]
[362088507,1747986666923,-2023.75,0.00023945,2]
[362088508,1747986666932,-2023.75,0.00023945,2]
[362088509,1747986666941,-2023.75,0.00023945,2]
[362088510,1747986666951,-2023.75,0.00023945,2]
[362088511,1747986666961,-2023.75,0.00023945,2]
[362088512,1747986666971,-2023.98596076,0.00023945,2]
[362088513,1747986666980,-767.77,0.00023952,2]
[362088514,1747986666989,-160.0,0.00023955,8]
[362088515,1747986666998,-14289.68156343,0.00023998,2]
[362088516,1747986667008,-1795491.37,0.00024,30]
[362088517,1747986667018,-250.0,0.00024,2]
[362088518,1747986667027,-194.0,0.00024,14]
[362088519,1747986667037,-1000.0,0.00024,24]
[362088520,1747986667046,-1000.0,0.00024,2]
[362088521,1747986667055,-5000.0,0.00024,7]
[362088522,1747986667065,-5000.0,0.00024,7]
[362088523,1747986667075,-5000.0,0.00024,7]
[362088524,1747986667085,-151.0,0.00024,7]
[362088525,1747986667095,-151.0,0.00024,7]
[362088526,1747986667104,-151.0,0.00024,7]
[362088527,1747986667114,-910603.45828647,0.00024,3]
[362088528,1747986667225,-151.0,0.00017808,2]
[362088529,1747986667235,-4320.86869769,0.00024,3]
[362088530,1747986807037,1184.624936,0.00015687,2]
[362088531,1747986851488,42183.25031951,0.00016,2]
[362088532,1747986851515,82805.22785534,0.00016,2]
[362088533,1747986851539,88093.39367426,0.00016,2]
[362088534,1747986969296,-1158.0,0.00026519,120]
[362088535,1747986969346,-6303.025627,0.00026519,120]
[362088536,1747986969399,-6770.69369,0.00026519,120]
[362088537,1747986969450,-2543.60510001,0.00026519,120]
[362088538,1747986969502,-7631.0,0.00026519,120]
[362088539,1747986969553,-2278.20881496,0.00026519,120]
[362088540,1747986969611,-853.57826335,0.00026519,120]
[362088541,1747986969671,-256.84849496,0.00026519,120]
[362088542,1747986969730,-1113.45344402,0.00026519,120]
[362088543,1747986969787,-220.03959691,0.00026519,120]
[362088544,1747986969837,-185.00200432,0.00026519,120]
[362088545,1747986969887,-301.72623461,0.00026519,120]
[362088546,1747986969939,-1005.63757557,0.00026519,120]
[362088547,1747986969989,-1503.88128204,0.00026519,120]
[362088548,1747986970037,-3014.66894867,0.00026519,120]
[362088549,1747986970088,-2990.0,0.00026519,120]
[362088550,1747986970137,-1578.95619491,0.00026519,120]
[362088551,1747986970186,-1167.0,0.00026519,120]
[362088552,1747986970234,-165.74924165,0.00026519,120]
[362088553,1747986970283,-1217.326862,0.00026519,120]
[362088554,1747986970332,-203763.50703482,0.00026519,120]
[362088555,1747986970382,-193.0,0.00026519,120]
[362088556,1747986970431,-729.85072715,0.00026519,120]
[362088557,1747986970638,1182.80858605,0.00026519,120]
[362088558,1747986975564,-1936.53180654,0.00026519,60]
[362088559,1747986975615,-161.01912654,0.00026519,30]
[362088560,1747986975662,-2000.0,0.00026519,30]
[362088561,1747986975712,-2000.0,0.00026519,30]
[362088562,1747986975761,-2000.0,0.00026519,30]
[362088563,1747986975811,-301544.47005556,0.00026519,30]
[362088564,1747986975859,-5494.54085193,0.00026519,30]
[362088565,1747986975907,-2000.0,0.00026519,30]
[362088566,1747986975957,-2000.0,0.00026519,30]
[362088567,1747986976005,-1144.0,0.00026519,31]
[362088568,1747986976053,-1766.0,0.00026519,31]
[362088569,1747986976272,-722.0,0.00026519,31]
[362088570,1747986976326,-1113.0,0.00026519,31]
[362088571,1747986976377,-286.0,0.00026519,31]
[362088572,1747986976428,-572.0,0.00026519,31]
[362088573,1747986976480,-512.48238119,0.00026519,30]
[362088574,1747986976530,-746.48311216,0.00026519,30]
[362088575,1747986976588,-804.54047109,0.00026519,32]
[362088576,1747986976638,-524.18682625,0.00026519,30]
[362088577,1747986976689,-4393.10321376,0.00026519,60]
[362088578,1747986976738,-5285.87682934,0.00026519,30]
[362088579,1747986976787,-170.75941164,0.00026519,30]
[362088580,1747986976835,-2284.8524643,0.00026519,30]
[362088581,1747986976885,-3459.73298784,0.00026519,60]
[362088582,1747986976934,-1248.71359124,0.00026519,30]
[362088583,1747986976983,-6063.97086914,0.00026519,30]
[362088584,1747986977031,-1247.0,0.00026519,31]
[362088585,1747986977082,-286.0,0.00026519,31]
[362088586,1747986977132,-194.0,0.00026519,31]
[362088587,1747986977186,-189.0,0.00026519,31]
[362088588,1747986977235,-184.0,0.00026519,31]
[362088589,1747986977285,-180.0,0.00026519,31]
[362088590,1747986977333,-176.0,0.00026519,31]
[362088591,1747986977384,-2272.22,0.00026519,30]
[362088592,1747986977435,-171.0,0.00026519,31]
[362088593,1747986977483,-167.0,0.00026519,31]
[362088594,1747986977532,-163.0,0.00026519,31]
[362088595,1747986977582,-159.0,0.00026519,31]
[362088596,1747986977629,-155.0,0.00026519,31]
[362088597,1747986977680,-152.0,0.00026519,31]
[362088598,1747986977729,-1183.0,0.00026519,31]
[362088599,1747986977777,-1827.0,0.00026519,31]
[362088600,1747986977823,-746.0,0.00026519,31]
[362088601,1747986977872,-1151.0,0.00026519,31]
[362088602,1747986977919,-296.0,0.00026519,31]
[362088603,1747986977968,-591.0,0.00026519,31]
[362088604,1747986978013,-3800.5447114,0.00026519,35]
[362088605,1747986978061,-2000.0,0.00026519,30]
[362088606,1747986978107,-2000.0,0.00026519,30]
[362088607,1747986978156,-13669.43912067,0.00026519,60]
[362088608,1747986978203,-642.47045285,0.00026519,30]
[362088609,1747986978253,-2500.0,0.00026519,30]
[362088610,1747986978300,-486.199999,0.00026519,30]
[362088611,1747986978350,-2000.0,0.00026519,30]
[362088612,1747986978399,-2000.0,0.00026519,30]
[362088613,1747986978450,-433.58346463,0.00026519,30]
[362088614,1747986978499,-500.0,0.00026519,30]
[362088615,1747986978547,-500.0,0.00026519,30]
[362088616,1747986978596,-457.46935795,0.00026519,30]
[362088617,1747986978649,-201.399999,0.00026519,30]
[362088618,1747987056550,235.194206,0.00015575,2]
[362088619,1747987063468,1183.65172605,0.00026378,30]
[362088620,1747987203272,2543.60510001,0.00026378,120]
[362088621,1747987218647,3933.0,0.000161,2]
[362088622,1747987343082,160.0,0.00026373,30]
[362088623,1747987343486,160.0,0.00026373,30]
[362088624,1747987343875,160.0,0.00026373,30]
[362088625,1747987344283,266.2,0.00026373,30]
[362088626,1747987374623,2000.0,0.00026373,30]
[362088627,1747987375296,2000.0,0.00026373,30]
[362088628,1747987375978,2000.0,0.00026373,30]
[362088629,1747987376456,2000.0,0.00026373,30]
[362088630,1747987377092,2000.0,0.00026373,30]
[362088631,1747987377778,486.199999,0.00026373,30]
[362088632,1747987381473,2000.0,0.00026373,30]
[362088633,1747987382031,2000.0,0.00026373,30]
[362088634,1747987382559,2000.0,0.00026373,30]
[362088635,1747987383176,2000.0,0.00026373,30]
[362088636,1747987383539,2000.0,0.00026373,30]
[362088637,1747987384147,486.199999,0.00026373,30]
[362088638,1747987388818,2000.0,0.00026373,30]
[362088639,1747987389556,2000.0,0.00026373,30]
[362088640,1747987389986,2000.0,0.00026373,30]
[362088641,1747987390664,2000.0,0.00026373,30]
[362088642,1747987391267,2000.0,0.00026373,30]
[362088643,1747987391879,486.199999,0.00026373,30]
[362088644,1747987393444,2000.0,0.00026373,30]
[362088645,1747987394260,2000.0,0.00026373,30]
[362088646,1747987394791,2000.0,0.00026373,30]
[362088647,1747987395538,2000.0,0.00026373,30]
[362088648,1747987396038,2000.0,0.00026373,30]
[362088649,1747987396567,486.199999,0.00026373,30]
[362088650,1747987396999,500.0,0.00026373,30]
[362088651,1747987397266,500.0,0.00026373,30]
[362088652,1747987397527,500.0,0.00026373,30]
[362088653,1747987397787,500.0,0.00026373,30]
[362088654,1747987398026,500.0,0.00026373,30]
[362088655,1747987398263,500.0,0.00026373,30]
[362088656,1747987398506,500.0,0.00026373,30]
[362088657,1747987398762,500.0,0.00026373,30]
[362088658,1747987399032,500.0,0.00026373,30]
[362088659,1747987399284,500.0,0.00026373,30]
[362088660,1747987399527,500.0,0.00026373,30]
[362088661,1747987399779,500.0,0.00026373,30]
[362088662,1747987400023,500.0,0.00026373,30]
[362088663,1747987400354,500.0,0.00026373,30]
[362088664,1747987400595,500.0,0.00026373,30]
[362088665,1747987400848,500.0,0.00026373,30]
[362088666,1747987401442,500.0,0.00026373,30]
[362088667,1747987401689,500.0,0.00026373,30]
[362088668,1747987401941,500.0,0.00026373,30]
[362088669,1747987402177,500.0,0.00026373,30]
[362088670,1747987402417,500.0,0.00026373,30]
[362088671,1747987403003,500.0,0.00026373,30]
[362088672,1747987403252,386.53985269,0.00026373,30]
[362088673,1747987506183,594.326111,0.00013699,2]
[362088675,1747987604809,500.0,0.00026373,30]
[362088676,1747987605055,500.0,0.00026373,30]
[362088677,1747987605291,500.0,0.00026373,30]
[362088678,1747987605535,500.0,0.00026373,30]
[362088679,1747987605784,500.0,0.00026373,30]
[362088680,1747987606015,500.0,0.00026373,30]
[362088681,1747987606249,500.0,0.00026373,30]
[362088682,1747987606594,500.0,0.00026373,30]
[362088683,1747987606828,500.0,0.00026373,30]
[362088684,1747987607061,500.0,0.00026373,30]
[362088685,1747987607331,500.0,0.00026373,30]
[362088686,1747987607578,500.0,0.00026373,30]
[362088687,1747987607825,500.0,0.00026373,30]
[362088688,1747987608421,500.0,0.00026373,30]
[362088689,1747987608676,500.0,0.00026373,30]
[362088690,1747987608916,500.0,0.00026373,30]
[362088691,1747987609177,500.0,0.00026373,30]
[362088692,1747987609459,500.0,0.00026373,30]
[362088693,1747987609874,207.63102858,0.00026373,30]
[362088701,1747987644995,160.0,0.00026373,30]
[362088702,1747987645687,160.0,0.00026373,30]
[362088703,1747987646364,160.0,0.00026373,30]
[362088704,1747987646788,266.2,0.00026373,30]
[362088712,1747987791328,-273.5632073,0.00016274,29]
[362088713,1747987792941,-153.58659792,0.00016274,29]
[362088714,1747987794266,273.5632073,0.000161,2]
[362088715,1747987797434,-200.48582334,0.00016274,29]
[362088716,1747987800098,-36.98045885,0.00016274,29]
[362088717,1747987800124,-150.72065642,0.00016338,2]
[362088718,1747987800152,-12.78470807,0.00016436,2]
[362088719,1747987801340,-163.50536449,0.00016436,2]
[362088720,1747987804032,-266.60017646,0.00016436,2]
[362088721,1747987805651,-33.39982354,0.00016436,2]
[362088722,1747987805677,-131.93899312,0.00016436,2]
[362088723,1747987808340,-168.06100688,0.00016436,2]
[362088724,1747987808364,-1.6012483,0.00016436,2]
[362088769,1747987831956,-986.49723772,0.00016272,2]
[362088771,1747987831965,-298.3987517,0.00016436,2]
[362088773,1747987831977,-1322.15978264,0.00016436,2]
[362088775,1747987831987,-300.0,0.00016437,2]
[362088777,1747987831997,-500.0,0.00016437,2]
[362088779,1747987832007,-500.0,0.00016437,2]
[362088781,1747987832016,-599.92574958,0.00016437,2]
[362088783,1747987832025,-500.0,0.00016437,2]
[362088785,1747987832035,-500.0,0.00016437,2]
[362088787,1747987832045,-500.0,0.00016437,2]
[362088789,1747987832055,-442.92732043,0.00016437,2]
[362088791,1747987832065,-387.89130758,0.00016437,2]
[362088793,1747987832074,-500.0,0.00016437,2]
[362088795,1747987832084,-500.0,0.00016437,2]
[362088797,1747987832093,-500.0,0.00016437,2]
[362088799,1747987832102,-406.37585361,0.00016437,2]
[362088801,1747987832112,-500.0,0.00016437,2]
[362088803,1747987832121,-156.35055014,0.00016437,2]
[362088805,1747987832130,-500.0,0.00016437,2]
[362088807,1747987832139,-500.0,0.00016437,2]
[362088808,1747987832148,-500.0,0.00016437,2]
[362088810,1747987832157,-500.0,0.00016437,2]
[362088812,1747987832166,-500.0,0.00016437,2]
[362088814,1747987832176,-500.0,0.00016437,2]
[362088817,1747987832185,-500.0,0.00016437,2]
[362088819,1747987832197,-500.0,0.00016437,2]
[362088821,1747987832206,-400.0,0.00016438,2]
[362088823,1747987832215,-148.09480865,0.00016438,2]
[362089110,1747987837807,-255.24300172,0.00016438,2]
[362089111,1747987837820,-430.0,0.00016438,2]
[362089112,1747987837833,-321.41704221,0.00016438,2]
[362089113,1747987837847,-453.09017933,0.00016438,2]
[362089114,1747987837860,-320.73047115,0.00016438,2]
[362089115,1747987837873,-430.0,0.00016438,2]
[362089116,1747987837886,-430.0,0.00016438,2]
[362089117,1747987837904,-399.88265152,0.00016438,2]
[362089118,1747987837915,-430.0,0.00016438,2]
[362089119,1747987837929,-430.0,0.00016438,2]
[362089120,1747987837940,-430.0,0.00016438,2]
[362089121,1747987837952,-430.0,0.00016438,2]
[362089122,1747987837965,-455.79979283,0.00016438,2]
[362089123,1747987837978,-430.0,0.00016438,2]
[362089124,1747987837989,-430.0,0.00016438,2]
[362089125,1747987838001,-510.0,0.00016438,2]
[362089126,1747987838013,-576.68,0.00016438,2]
[362089127,1747987838025,-430.0,0.00016438,2]
[362089128,1747987838037,-430.0,0.00016438,2]
[362089129,1747987838049,-430.0,0.00016438,2]
[362089130,1747987838061,-430.0,0.00016438,2]
[362089131,1747987838071,-430.61093112,0.00016438,2]
[362089132,1747987838083,-507.01533246,0.00016438,2]
[362089133,1747987838095,-430.0,0.00016438,2]
[362089134,1747987838107,-430.0,0.00016438,2]
[362089135,1747987838119,-430.0,0.00016438,2]
[362089136,1747987838132,-326.14536547,0.00016438,2]
[362089137,1747987838145,-477.44513877,0.00016438,2]
[362089138,1747987838156,-452.09428627,0.00016438,2]
[362089139,1747987838167,-430.0,0.00016438,2]
[362089140,1747987838179,-430.0,0.00016438,2]
[362089141,1747987838190,-324.47274431,0.00016438,2]
[362089142,1747987838202,-323.0391236,0.00016438,2]
[362089143,1747987838214,-393.90702719,0.00016438,2]
[362089144,1747987838226,-322.51700316,0.00016438,2]
[362089145,1747987838236,-430.0,0.00016438,2]
[362089146,1747987838248,-430.0,0.00016438,2]
[362089147,1747987838261,-323.9319657,0.00016438,2]
[362089148,1747987838273,-331.65880095,0.00016438,2]
[362089149,1747987838284,-430.0,0.00016438,2]
[362089150,1747987838298,-430.0,0.00016438,2]
[362089151,1747987838310,-470.0,0.00016438,2]
[362089152,1747987838322,-430.0,0.00016438,2]
[362089153,1747987838333,-430.0,0.00016438,2]
[362089154,1747987838344,-171.33469025,0.00016438,2]
[362089155,1747987838354,-430.0,0.00016438,2]
[362089156,1747987838365,-430.0,0.00016438,2]
[362089157,1747987838378,-430.0,0.00016438,2]
[362089158,1747987838389,-470.0,0.00016438,2]
[362089159,1747987838400,-405.2765632,0.00016438,2]
[362089160,1747987838413,-352.90422119,0.00016438,2]
[362089161,1747987838425,-323.47359478,0.00016438,2]
[362089162,1747987838436,-430.0,0.00016438,2]
[362089163,1747987838447,-403.45031571,0.00016438,2]
[362089164,1747987838461,-301.68828176,0.00016438,2]
[362089165,1747987838472,-430.0,0.00016438,2]
[362089166,1747987838483,-461.70141957,0.00016438,2]
[362089167,1747987838495,-430.0,0.00016438,2]
[362089168,1747987838508,-430.0,0.00016438,2]
[362089169,1747987838520,-430.0,0.00016438,2]
[362089170,1747987838532,-322.77845241,0.00016438,2]
[362089171,1747987838545,-352.58091204,0.00016438,2]
[362089172,1747987838557,-430.0,0.00016438,2]
[362089173,1747987838570,-351.82279311,0.00016438,2]
[362089174,1747987838582,-353.88892207,0.00016438,2]
[362089175,1747987838594,-452.61121375,0.00016438,2]
[362089176,1747987838604,-430.0,0.00016438,2]
[362089177,1747987838615,-430.0,0.00016438,2]
[362089178,1747987838625,-430.0,0.00016438,2]
[362089179,1747987838636,-352.0390938,0.00016438,2]
[362089180,1747987838647,-430.0,0.00016438,2]
[362089181,1747987838659,-430.0,0.00016438,2]
[362089182,1747987838671,-205.09207687,0.00016438,2]
[362089183,1747987838684,-430.0,0.00016438,2]
[362089184,1747987838695,-430.0,0.00016438,2]
[362089185,1747987838709,-430.0,0.00016438,2]
[362089186,1747987838721,-430.0,0.00016438,2]
[362089187,1747987838736,-430.0,0.00016438,2]
[362089188,1747987838747,-430.0,0.00016438,2]
[362089189,1747987838759,-430.0,0.00016438,2]
[362089190,1747987838770,-167.13163836,0.00016438,2]
[362089191,1747987838782,-300.65396975,0.00016438,2]
[362089192,1747987838793,-355.56037568,0.00016438,2]
[362089193,1747987838805,-430.0,0.00016438,2]
[362089194,1747987838817,-430.0,0.00016438,2]
[362089195,1747987838829,-430.0,0.00016438,2]
[362089196,1747987838841,-430.0,0.00016438,2]
[362089197,1747987838854,-430.0,0.00016438,2]
[362089198,1747987838864,-391.21696724,0.00016438,2]
[362089199,1747987838875,-430.0,0.00016438,2]
[362089200,1747987838886,-430.0,0.00016438,2]
[362089201,1747987838900,-464.13303301,0.00016438,2]
[362089202,1747987838911,-430.0,0.00016438,2]
[362089203,1747987838922,-500.0,0.00016438,2]
[362089204,1747987838934,-500.0,0.00016438,2]
[362089205,1747987838946,-500.0,0.00016438,2]
[362089206,1747987838957,-420.0,0.00016438,2]
[362089207,1747987838967,-430.0,0.00016438,2]
[362089208,1747987838980,-430.0,0.00016438,2]
[362089209,1747987838991,-430.0,0.00016438,2]
[362089210,1747987839003,-430.0,0.00016438,2]
[362089211,1747987839013,-322.81033602,0.00016438,2]
[362089212,1747987839024,-351.9445431,0.00016438,2]
[362089213,1747987839035,-430.0,0.00016438,2]
[362089214,1747987839046,-430.0,0.00016438,2]
[362089215,1747987839056,-408.69212648,0.00016438,2]
[362089216,1747987839067,-352.60178299,0.00016438,2]
[362089217,1747987839077,-154.95039111,0.00016438,2]
[362089218,1747987839088,-553.15745365,0.00016438,2]
[362089219,1747987839099,-257.57448922,0.00016438,2]
[362089220,1747987839109,-430.0,0.00016438,2]
[362089221,1747987839120,-430.0,0.00016438,2]
[362089222,1747987839131,-430.0,0.00016438,2]